bitfinex/quotes_SOLUSD_20220128
["timestamp","ask_amount","ask_price","bid_price","bid_amount"]
[1643331471335,0.2,90.15,90.036,0.25]
[1643331471533,0.2,90.15,90.051,35.54292789]
[1643331471739,21.36193642,90.149,90.052,112.2]
[1643331471933,208.03126074,90.114,90.052,112.45]
[1643331472138,0.2,90.113,90.052,114.39218667]
[1643331472333,0.2,90.113,90.053,1.94218667]
[1643331472533,0.45,90.148,90.053,1.94218667]
[1643331472734,0.45,90.148,90.051,35.54292789]
[1643331472735,0.25,90.148,90.051,35.54292789]
[1643331473035,2.95669142,90.133,90.051,35.54292789]
[1643331473241,0.25,90.132,90.051,35.54292789]
[1643331473537,112.2,90.121,90.051,35.54292789]
[1643331473737,0.2,90.12,90.051,35.54292789]
[1643331473936,6.0,90.111,90.051,35.54292789]
[1643331474364,0.25,90.11,90.051,35.54292789]
[1643331475239,0.25,90.111,90.051,35.54292789]
[1643331475438,6.0,90.112,90.052,2.18692327]
[1643331475639,0.2,90.147,90.052,0.25]
[1643331475838,0.45,90.147,90.052,0.25]
[1643331476039,0.2,90.147,90.053,1.93692327]
[1643331476240,28.58082748,90.177,90.061,112.2]
[1643331476241,0.2,90.148,90.061,112.2]
[1643331476438,6.0,90.167,90.061,112.2]
[1643331476639,6.0,90.167,90.072,122.25422971]
[1643331476840,6.0,90.167,90.073,0.25]
[1643331477039,21.38003357,90.166,90.073,19.97636104]
[1643331477342,0.2,90.165,90.08,13.41]
[1643331477541,28.58082748,90.198,90.08,13.41]
[1643331477740,28.58082748,90.198,90.081,164.4703736]
[1643331477943,21.38026176,90.217,90.111,35.44292789]
[1643331478140,21.38026176,90.217,90.112,112.3]
[1643331478340,21.38026176,90.231,90.121,6.0]
[1643331478540,21.38026176,90.231,90.13,13.41]
[1643331478843,21.38026176,90.256,90.14,13.41]
[1643331479039,21.38026176,90.256,90.15,19.41]
[1643331479240,21.38026176,90.265,90.16,13.41]
[1643331479443,21.38026176,90.265,90.161,112.3]
[1643331479640,21.38026176,90.268,90.171,6.0]
[1643331479842,0.25,90.267,90.172,0.25]
[1643331480145,6.0,90.258,90.172,2.17718456]
[1643331480342,6.0,90.258,90.173,1.92718456]
[1643331480541,21.38026176,90.257,90.173,37.47011245]
[1643331480745,21.38026176,90.257,90.174,0.35]
[1643331480944,21.38026176,90.257,90.174,2.27195764]
[1643331481144,21.38026176,90.257,90.175,1.92195764]
[1643331481343,0.25,90.256,90.176,0.25]
[1643331481543,0.25,90.256,90.174,0.1]
[1643331481743,21.38026176,90.255,90.174,0.1]
[1643331481970,21.38026176,90.255,90.174,0.35]
[1643331482167,21.38026176,90.255,90.174,112.55]
[1643331482366,21.38026176,90.255,90.175,0.1]
[1643331482567,0.25,90.254,90.175,0.1]
[1643331482767,6.0,90.254,90.175,0.1]
[1643331482967,0.35,90.257,90.175,0.1]
[1643331483168,6.0,90.259,90.175,0.1]
[1643331483369,6.0,90.254,90.175,0.1]
[1643331483768,6.0,90.254,90.175,0.35]
[1643331483968,6.0,90.254,90.176,1.91784237]
[1643331484268,6.0,90.254,90.18,13.41]
[1643331484471,6.0,90.254,90.181,0.1]
[1643331484670,6.0,90.254,90.181,112.55]
[1643331484869,6.0,90.254,90.182,2.01784237]
[1643331485070,0.1,90.286,90.182,22.35413881]
[1643331485071,6.0,90.277,90.182,22.35413881]
[1643331485271,0.25,90.253,90.183,0.35]
[1643331485471,21.3694592,90.271,90.183,0.25]
[1643331485671,0.1,90.27,90.183,0.25]
[1643331485871,6.0,90.261,90.183,0.25]
[1643331486075,6.0,90.261,90.185,112.2]
[1643331486271,6.0,90.261,90.19,13.41]
[1643331486471,0.25,90.27,90.192,112.2]
[1643331486472,6.0,90.266,90.192,112.2]
[1643331486671,0.25,90.265,90.193,0.1]
[1643331486876,0.1,90.275,90.193,24.52046192]
[1643331487075,133.7221,90.33,90.193,24.52046192]
[1643331487076,0.1,90.314,90.194,112.3]
[1643331487273,0.1,90.315,90.195,0.35]
[1643331487475,0.1,90.315,90.204,6.0]
[1643331487674,0.1,90.321,90.205,112.2]
[1643331487874,41.71499176,90.328,90.206,32.02150177]
[1643331488174,0.1,90.327,90.221,13.57565583]
[1643331488373,0.35,90.327,90.222,0.35]
[1643331488575,6.0,90.318,90.222,0.35]
[1643331488775,44.15554557,90.358,90.224,112.2]
[1643331488974,44.15554557,90.358,90.222,0.35]
[1643331488975,44.15554557,90.358,90.277,0.04398626]
[1643331489175,4.64061417,90.414,90.29,13.41]
[1643331489375,3.00814015,90.45,90.291,0.25]
[1643331489580,287.39497888,90.49,90.377,1.91632311]
[1643331489776,287.39497888,90.49,90.39,13.41]
[1643331489777,284.38683873,90.49,90.39,13.41]
[1643331490177,23.6366,90.548,90.4,22.5883]
[1643331490385,11.55155591,90.539,90.41,13.41]
[1643331490577,2.95669142,90.537,90.42,6.0]
[1643331490791,17.06008066,90.515,90.421,0.25]
[1643331490979,39.48797689,90.514,90.421,0.25]
[1643331491178,2.95669142,90.537,90.43,13.41]
[1643331491382,3.00814015,90.566,90.431,112.45]
[1643331491578,3.00814015,90.594,90.442,112.2]
[1643331491780,0.35,90.6,90.45,13.41]
[1643331491988,0.35,90.6,90.452,6.0]
[1643331492181,35.2746899,90.638,90.46,6.0]
[1643331492378,49.11781722,90.619,90.47,13.41]
[1643331492578,49.11781722,90.619,90.471,13.57565583]
[1643331492982,24.08674911,90.618,90.45,13.41]
[1643331493179,13.41,90.61,90.44,13.41]
[1643331493383,16.579,90.61,90.46,16.5785]
[1643331493679,21.13005769,90.609,90.471,112.2]
[1643331493880,21.13005769,90.609,90.472,19.75755465]
[1643331493881,37.58155472,90.599,90.472,19.75755465]
[1643331494080,0.1,90.598,90.47,19.41]
[1643331494281,0.1,90.598,90.45,13.41]
[1643331494685,21.11938368,90.597,90.45,13.41]
[1643331494885,6.0,90.59,90.45,13.41]
[1643331495081,6.0,90.587,90.45,33.0054073]
[1643331495281,0.25,90.586,90.45,33.0054073]
[1643331495682,6.0,90.579,90.45,13.41]
[1643331495984,2.95669142,90.585,90.45,13.41]
[1643331496182,2.95669142,90.578,90.451,0.25]
[1643331496382,0.1,90.589,90.451,0.25]
[1643331496581,3.05669142,90.598,90.46,6.0]
[1643331496781,3.05669142,90.598,90.47,13.41]
[1643331496981,0.1,90.598,90.471,2.06262742]
[1643331497388,6.0,90.589,90.471,2.06262742]
[1643331497582,0.35,90.598,90.471,2.06262742]
[1643331497583,0.1,90.598,90.471,2.06262742]
[1643331497785,0.1,90.616,90.472,2.17127181]
[1643331497985,0.1,90.616,90.482,6.0]
[1643331498185,0.1,90.665,90.49,13.41]
[1643331498384,0.1,90.665,90.52,16.5658]
[1643331498586,48.53252975,90.642,90.531,17.04230751]
[1643331498784,0.1,90.641,90.532,0.25]
[1643331498985,0.1,90.641,90.532,2.17066263]
[1643331499186,0.1,90.641,90.531,17.04230751]
[1643331499386,2.95669142,90.64,90.5,15.33066263]
[1643331499588,2.95669142,90.64,90.443,23.5922]
[1643331499787,16.36669142,90.64,90.443,23.5922]
[1643331499995,16.36669142,90.64,90.45,13.41]
[1643331499996,6.0,90.63,90.45,13.41]
[1643331500189,13.41,90.62,90.45,13.41]
[1643331500393,0.31328376,90.584,90.451,17.92268352]
[1643331500587,13.41,90.6,90.451,17.92268352]
[1643331500788,47.64959604,90.599,90.451,17.92268352]
[1643331500989,6.0,90.589,90.451,37.6187203]
[1643331501394,0.25,90.588,90.451,17.92268352]
[1643331501588,9.20669142,90.588,90.451,17.92268352]
[1643331501789,9.20669142,90.588,90.452,19.69603678]
[1643331501988,3.05669142,90.598,90.452,19.69603678]
[1643331502188,0.1,90.598,90.46,167.65]
[1643331502388,0.1,90.598,90.471,5.23680225]
[1643331502591,0.1,90.598,90.481,6.0]
[1643331502788,0.1,90.598,90.482,112.45]
[1643331502990,0.1,90.598,90.492,6.0]
[1643331503187,0.1,90.598,90.5,13.41]
[1643331503388,0.1,90.598,90.502,112.2]
[1643331503588,0.1,90.665,90.512,6.0]
[1643331503789,0.1,90.665,90.52,13.41]
[1643331503790,0.35,90.665,90.52,13.41]
[1643331503989,0.1,90.665,90.53,6.0]
[1643331504195,0.1,90.665,90.54,13.41]
[1643331504399,35.91190165,90.666,90.542,5.23680225]
[1643331504591,0.1,90.665,90.553,112.2]
[1643331504800,0.1,90.665,90.561,17.71040777]
[1643331504991,0.1,90.665,90.571,6.0]
[1643331505194,0.1,90.665,90.581,5.449078]
[1643331505390,0.1,90.665,90.582,0.25]
[1643331505792,0.1,90.665,90.582,21.27435471]
[1643331505993,0.1,90.665,90.583,133.22435471]
[1643331506393,0.1,90.665,90.584,21.27435471]
[1643331506593,0.1,90.665,90.594,6.0]
[1643331507192,0.1,90.665,90.59,13.41]
[1643331507797,0.35,90.665,90.59,13.41]
[1643331507994,0.35,90.665,90.563,1.9154452]
[1643331508195,0.35,90.665,90.55,16.5599]
[1643331508196,0.35,90.665,90.56,13.41]
[1643331508494,6.0,90.656,90.54,13.41]
[1643331508697,6.0,90.656,90.55,13.41]
[1643331508894,0.1,90.665,90.56,13.41]
[1643331509094,6.0,90.656,90.571,2.49447041]
[1643331509296,6.0,90.656,90.58,13.41]
[1643331509794,6.0,90.656,90.581,0.25]
[1643331510399,0.25,90.655,90.58,13.41]
[1643331510596,0.25,90.655,90.581,0.25]
[1643331510995,6.0,90.656,90.581,0.25]
[1643331511197,6.0,90.656,90.582,1.90823167]
[1643331511395,0.1,90.665,90.582,41.88906761]
[1643331511598,6.0,90.699,90.592,6.0]
[1643331511797,0.1,90.733,90.6,13.41]
[1643331511997,0.1,90.733,90.61,6.0]
[1643331512198,0.1,90.733,90.62,13.41]
[1643331512395,41.33481305,90.733,90.621,0.25]
[1643331512598,0.1,90.732,90.621,31.19267615]
[1643331512795,0.1,90.732,90.63,6.0]
[1643331512999,0.1,90.732,90.641,6.61504129]
[1643331513197,0.1,90.732,90.65,13.41]
[1643331513396,0.04375011,90.76,90.67,16.5384]
[1643331513397,0.1,90.734,90.67,16.5384]
[1643331513596,0.1,90.734,90.68,19.41]
[1643331513796,0.1,90.734,90.681,0.25]
[1643331514000,0.1,90.734,90.69,13.41]
[1643331514398,0.1,90.734,90.691,0.25]
[1643331514796,0.04375011,90.76,90.692,60.0]
[1643331514997,0.04375011,90.76,90.702,6.0]
[1643331515200,0.04375011,90.76,90.71,13.41]
[1643331515396,0.04375011,90.76,90.711,112.45]
[1643331515627,24.5617,90.871,90.721,118.2]
[1643331515797,3.00814015,90.901,90.722,0.25]
[1643331516003,2.97074218,90.905,90.73,16.5235]
[1643331516300,184.22042427,90.906,90.75,167.65]
[1643331516503,184.22042427,90.906,90.77,167.65]
[1643331516704,38.75267056,90.905,90.78,181.06]
[1643331517000,38.75267056,90.905,90.79,22.5148]
[1643331517200,38.75267056,90.905,90.771,20.35702138]
[1643331517399,2.95669142,90.904,90.75,13.41]
[1643331517600,2.95669142,90.904,90.76,13.41]
[1643331517902,6.0,90.894,90.76,13.41]
[1643331518102,16.5238,90.89,90.76,13.41]
[1643331518299,42.91395108,90.889,90.76,13.41]
[1643331518501,6.0,90.879,90.761,131.82381456]
[1643331518705,42.91395108,90.889,90.761,133.74018886]
[1643331518901,42.91395108,90.889,90.771,6.0]
[1643331519100,42.91395108,90.889,90.78,13.41]
[1643331519303,42.91395108,90.889,90.781,112.45]
[1643331519501,42.91395108,90.889,90.791,6.0]
[1643331519701,42.91395108,90.889,90.79,13.41]
[1643331519901,0.25,90.888,90.79,13.41]
[1643331520103,0.35,90.888,90.79,13.41]
[1643331520299,3.30669142,90.888,90.79,13.41]
[1643331520500,0.1,90.888,90.79,13.41]
[1643331520901,0.1,90.888,90.791,20.49048122]
[1643331521101,0.1,90.888,90.801,118.2]
[1643331521303,0.1,90.888,90.811,112.2]
[1643331521703,0.1,90.888,90.812,0.25]
[1643331521903,0.1,90.926,90.812,20.67909233]
[1643331522104,0.1,90.926,90.813,123.2486288]
[1643331522305,0.1,90.926,90.822,6.0]
[1643331522505,0.1,90.926,90.831,112.2]
[1643331522704,43.51814125,90.987,90.84,13.41]
[1643331522905,0.1,90.986,90.842,112.2]
[1643331523134,43.11814125,90.987,90.842,112.2]
[1643331523308,43.11814125,90.987,90.853,112.2]
[1643331523508,43.11814125,90.987,90.86,13.41]
[1643331523806,43.11814125,90.987,90.863,6.0]
[1643331524007,43.11814125,90.987,90.871,112.2]
[1643331524207,43.11814125,90.987,90.88,13.41]
[1643331524409,43.11814125,90.987,90.881,0.25]
[1643331524608,43.11814125,90.987,90.881,112.45]
[1643331524807,43.11814125,90.987,90.881,114.3663743]
[1643331525408,6.0,90.977,90.881,114.3663743]
[1643331525609,6.0,90.977,90.881,112.45]
[1643331526011,6.0,90.977,90.88,13.41]
[1643331526211,0.32001677,90.974,90.855,1.91115927]
[1643331526509,3.20669142,90.976,90.83,13.41]
[1643331526713,0.25,90.976,90.83,13.41]
[1643331526912,6.0,90.966,90.831,20.42026678]
[1643331527108,6.0,90.966,90.831,22.33142605]
[1643331527309,16.5104,90.96,90.831,1.91115927]
[1643331527510,6.0,90.95,90.83,13.41]
[1643331527711,36.74354701,90.949,90.83,13.41]
[1643331527913,36.99354701,90.949,90.81,13.41]
[1643331528112,6.0,90.939,90.72,167.65]
[1643331528417,76.9705,90.938,90.775,20.42026678]
[1643331528711,46.89040515,90.929,90.776,112.2]
[1643331528910,6.0,90.928,90.78,13.41]
[1643331529112,6.0,90.919,90.781,112.2]
[1643331529313,6.0,90.919,90.782,0.25]
[1643331529513,6.0,90.919,90.792,112.2]
[1643331529712,6.0,90.919,90.8,181.06]
[1643331529912,6.0,90.919,90.803,112.2]
[1643331530211,6.0,90.919,90.813,6.0]
[1643331530414,6.0,90.919,90.82,13.41]
[1643331530812,6.0,90.919,90.821,112.45]
[1643331531016,6.0,90.919,90.821,144.89116596]
[1643331531213,46.89040515,90.929,90.822,12.59867696]
[1643331531418,46.89040515,90.929,90.823,112.45]
[1643331531712,46.89040515,90.929,90.823,144.89116596]
[1643331531912,46.89040515,90.929,90.825,112.2]
[1643331532114,23.1759,90.948,90.841,112.2]
[1643331532316,23.1759,90.948,90.85,13.41]
[1643331532317,0.25,90.947,90.85,13.41]
[1643331532513,6.0,90.938,90.851,112.2]
[1643331532715,6.0,90.938,90.85,13.41]
[1643331532917,0.25,90.937,90.85,13.41]
[1643331533116,40.96170614,90.937,90.85,13.41]
[1643331533519,6.0,90.927,90.85,13.41]
[1643331533917,0.25,90.926,90.814,21.74133141]
[1643331534121,0.25,90.926,90.82,13.41]
[1643331534317,0.25,90.926,90.8,13.41]
[1643331534518,6.25,90.926,90.8,13.41]
[1643331534717,6.25,90.926,90.805,19.842489]
[1643331535016,6.25,90.926,90.821,112.2]
[1643331535218,0.25,90.926,90.821,112.2]
[1643331535416,0.25,90.926,90.822,19.842489]
[1643331535616,40.71170614,90.937,90.822,19.842489]
[1643331535817,40.71170614,90.937,90.823,114.34364055]
[1643331536218,40.71170614,90.937,90.825,112.2]
[1643331536418,40.71170614,90.937,90.84,13.41]
[1643331536820,6.0,90.927,90.825,1.89364055]
[1643331537024,6.0,90.927,90.78,13.41]
[1643331537222,0.25,90.926,90.77,13.41]
[1643331537423,79.64489142,90.926,90.772,112.2]
[1643331537623,2.95669142,90.925,90.782,6.0]
[1643331537826,0.25,90.924,90.78,13.41]
[1643331538025,16.5197,90.91,90.782,19.842489]
[1643331538253,0.25,90.909,90.783,2.13550256]
[1643331538560,35.25333907,90.899,90.78,10.91]
[1643331538752,0.25,90.898,90.781,0.25]
[1643331538952,6.0,90.889,90.781,0.25]
[1643331539153,6.0,90.889,90.79,13.41]
[1643331539453,6.0,90.889,90.791,0.25]
[1643331539652,6.0,90.889,90.791,21.97799156]
[1643331539851,11.50177587,90.95,90.791,21.97799156]
[1643331539852,70.4382,90.926,90.792,1.88550256]
[1643331540053,23.8274,90.926,90.792,32.41550925]
[1643331540251,23.8274,90.926,90.793,112.45]
[1643331540452,23.8274,90.926,90.793,125.02302025]
[1643331540656,23.8274,90.926,90.793,144.86550925]
[1643331540855,45.86358035,90.925,90.794,32.41550925]
[1643331541070,6.0,90.915,90.794,32.41550925]
[1643331541252,6.0,90.915,90.795,32.66628361]
[1643331541457,6.0,90.915,90.81,13.41]
[1643331541653,6.0,90.915,90.811,112.2]
[1643331541858,3.00814015,90.928,90.811,132.292489]
[1643331542058,3.00814015,90.96,90.821,6.0]
[1643331542257,3.00814015,90.963,90.83,13.41]
[1643331542458,3.01327045,90.979,90.87,167.65]
[1643331542658,134.19004571,90.985,90.89,167.65]
[1643331542856,134.19004571,90.985,90.9,29.9049]
[1643331543057,134.19004571,90.985,90.901,112.2]
[1643331543258,134.19004571,90.985,90.901,132.292489]
[1643331543458,195.7599,91.087,90.911,6.0]
[1643331543759,195.7599,91.087,90.92,13.41]
[1643331543957,195.7599,91.087,90.921,112.2]
[1643331544158,195.7599,91.087,90.93,6.0]
[1643331544357,195.7599,91.087,90.94,13.41]
[1643331544558,195.7599,91.087,90.95,13.41]
[1643331544758,195.7599,91.087,90.941,112.2]
[1643331544759,195.7599,91.087,90.96,13.41]
[1643331544957,42.52450531,91.015,90.96,13.41]
[1643331545157,42.52450531,91.015,90.961,0.25]
[1643331545560,195.7599,91.087,90.961,0.25]
[1643331545958,195.7599,91.087,90.962,1.88115129]
[1643331546368,195.7599,91.087,90.963,0.25]
[1643331546559,84.3481,91.0,90.963,0.25]
[1643331546760,84.3481,91.0,90.964,1.88115129]
[1643331546960,84.3481,91.0,90.97,54.9325]
[1643331547160,37.69505937,90.999,90.964,1.88115129]
[1643331547361,37.69505937,90.999,90.96,13.41]
[1643331547560,37.69505937,90.999,90.95,13.41]
[1643331548171,84.3481,91.0,90.95,13.41]
[1643331548360,84.3481,91.0,90.951,1.87198529]
[1643331548562,74.5013,91.121,90.951,21.96447429]
[1643331548761,6.02780118,91.12,90.952,132.042489]
[1643331548964,9.04170177,91.12,90.952,144.60040309]
[1643331549161,43.33664542,91.119,90.96,16.4823]
[1643331549362,43.33664542,91.119,90.97,13.41]
[1643331549562,48.23562541,91.104,90.97,13.41]
[1643331549764,3.01390059,91.103,90.971,1.87198529]
[1643331549961,6.0,91.094,90.971,1.87198529]
[1643331550164,6.0,91.093,90.97,13.41]
[1643331550363,3.01390059,91.092,90.97,13.41]
[1643331550564,6.0,91.082,90.971,112.2]
[1643331550765,43.2313317,91.081,90.971,112.45]
[1643331550965,3.01390059,91.08,90.971,112.45]
[1643331551166,6.0,91.071,90.972,1.87198529]
[1643331551365,6.0,91.07,90.973,0.25]
[1643331551568,6.0,91.07,90.973,20.092489]
[1643331551770,6.0,91.07,90.974,1.87198529]
[1643331551969,39.96743111,91.081,90.974,161.08796208]
[1643331552167,39.96743111,91.081,90.975,20.092489]
[1643331552366,39.96743111,91.081,90.976,112.2]
[1643331552565,39.96743111,91.081,90.99,29.8918]
[1643331552767,39.96743111,91.081,90.991,112.45]
[1643331552967,39.96743111,91.081,90.991,132.03339923]
[1643331553168,0.25,91.08,90.991,153.74277527]
[1643331553369,0.25,91.08,90.992,10.6859288]
[1643331553570,0.1,91.122,91.0,16.48]
[1643331553770,1.50044262,91.122,91.01,13.41]
[1643331553970,1.50044262,91.138,91.011,112.2]
[1643331554173,1.50044262,91.138,91.011,112.45]
[1643331554369,4.52120381,91.173,91.011,112.45]
[1643331554370,1.50044262,91.125,91.012,19.842489]
[1643331554670,1.50044262,91.122,91.012,19.842489]
[1643331554871,0.25,91.121,91.013,112.2]
[1643331555071,6.0,91.114,91.013,114.31688704]
[1643331555271,6.0,91.114,91.014,51.97870407]
[1643331555470,6.0,91.114,91.023,6.0]
[1643331555682,6.0,91.114,91.03,13.41]
[1643331555871,6.0,91.114,91.04,13.41]
[1643331556172,0.1,91.123,91.051,112.2]
[1643331556371,0.1,91.123,91.071,112.2]
[1643331556573,0.1,91.123,91.08,13.41]
[1643331556971,1.50044262,91.175,91.081,112.2]
[1643331557172,20.3952,91.18,91.081,112.2]
[1643331557372,6.0,91.165,91.082,0.25]
[1643331557572,20.3952,91.18,91.082,0.25]
[1643331557773,47.36140481,91.179,91.082,0.25]
[1643331558375,1.50044262,91.199,91.083,19.842489]
[1643331558574,22.5943,91.243,91.1,16.4618]
[1643331558575,1.50044262,91.238,91.1,16.4618]
[1643331558873,22.5943,91.243,91.111,112.2]
[1643331558874,1.50044262,91.242,91.111,112.2]
[1643331559073,0.04351504,91.25,91.101,20.092489]
[1643331559074,0.04351504,91.25,91.121,118.2]
[1643331559277,0.04351504,91.25,91.131,112.2]
[1643331559773,0.04351504,91.25,91.132,2.10706436]
[1643331559973,36.52316121,91.246,91.132,21.69046359]
[1643331560173,36.52316121,91.246,91.134,112.2]
[1643331560376,6.0,91.236,91.135,0.25]
[1643331560576,6.0,91.236,91.15,13.41]
[1643331560777,0.04351504,91.25,91.151,112.45]
[1643331560975,0.04351504,91.25,91.17,167.65]
[1643331561174,0.04351504,91.25,91.18,13.41]
[1643331561378,4.52120381,91.363,91.181,0.25]
[1643331561379,1.50044262,91.327,91.181,0.25]
[1643331561575,1.50044262,91.327,91.22,167.65]
[1643331561778,40.02532539,91.318,91.23,13.41]
[1643331561974,40.02532539,91.318,91.25,16.4335]
[1643331562177,60.0,91.317,91.221,51.62776147]
[1643331562380,60.0,91.317,91.182,1.84800727]
[1643331562381,60.0,91.315,91.182,1.84800727]
[1643331562578,0.1,91.314,91.19,13.41]
[1643331562783,0.1,91.314,91.12,167.65]
[1643331562784,6.0,91.305,91.18,13.41]
[1643331563185,6.25,91.304,91.181,23.3588296]
[1643331563377,6.35,91.304,91.181,23.3588296]
[1643331563577,48.75301017,91.303,91.182,21.51082233]
[1643331563778,0.35,91.302,91.183,0.25]
[1643331563979,6.0,91.293,91.182,21.51082233]
[1643331564411,6.0,91.293,91.18,13.41]
[1643331564412,0.25,91.292,91.18,13.41]
[1643331564600,0.30561157,91.274,91.15,13.41]
[1643331564801,0.30561157,91.274,91.1,167.65]
[1643331564802,0.30561157,91.274,91.11,13.41]
[1643331564999,13.41,91.27,91.11,13.41]
[1643331565200,16.4641,91.24,91.09,13.41]
[1643331565401,152.7908,91.239,91.09,13.41]
[1643331565602,49.50143772,91.229,91.09,13.41]
[1643331565802,0.25,91.228,91.09,13.41]
[1643331566606,0.25,91.228,91.091,1.84708245]
[1643331567203,0.25,91.228,91.078,0.00708245]
[1643331567204,60.0,91.227,91.078,0.00708245]
[1643331567410,0.32424434,91.182,90.905,151.81234446]
[1643331567606,0.32424434,91.182,90.972,417.88500951]
[1643331567806,2.22364885,91.028,90.913,472.94230315]
[1643331568008,6.0,91.018,90.86,13.41]
[1643331568207,3.00146233,91.017,90.882,49.12694787]
[1643331568407,3.25146233,91.017,90.89,16.4997]
[1643331568706,6.0,91.007,90.89,16.4997]
[1643331568906,2.22364885,91.028,90.891,1.82417162]
[1643331569106,6.0,91.018,90.891,1.82417162]
[1643331569306,6.0,91.018,90.892,11.32800872]
[1643331569511,6.0,91.018,90.92,16.4929]
[1643331569706,3.24069818,91.017,90.91,13.41]
[1643331569907,3.24069818,91.017,90.893,1.82417162]
[1643331570106,6.0,91.007,90.893,1.82417162]
[1643331570306,0.25,91.006,90.893,1.82417162]
[1643331570513,6.0,91.007,90.9,16.4971]
[1643331570808,2.22364885,91.028,90.91,13.41]
[1643331571007,2.22364885,91.028,90.92,13.41]
[1643331571209,2.22364885,91.028,90.93,13.41]
[1643331571408,2.56355317,91.027,90.931,44.38448871]
[1643331571608,2.56355317,91.027,90.931,44.63448871]
[1643331571807,2.56355317,91.027,90.931,46.45238216]
[1643331572013,0.25,91.026,90.932,1.81789345]
[1643331572411,0.25,91.026,90.933,0.25]
[1643331572814,0.25,91.026,90.931,44.38448871]
[1643331573516,0.25,91.026,90.88,13.41]
[1643331573914,6.0,91.017,90.88,13.41]
[1643331574114,6.0,91.017,90.881,1.8172364]
[1643331574416,6.0,91.017,90.87,16.5032]
[1643331574417,0.30335373,91.01,90.812,1.47506222]
[1643331574725,0.30335373,91.01,90.809,503.20154851]
[1643331575014,0.3024546,90.981,90.809,503.20154851]
[1643331575215,6.0,90.99,90.81,13.41]
[1643331575415,1.04076558,90.989,90.811,43.78654644]
[1643331575613,6.0,90.979,90.85,16.5071]
[1643331575814,6.0,90.979,90.85,29.9171]
[1643331576014,6.0,90.979,90.852,112.2]
[1643331576513,6.0,90.979,90.853,0.25]
[1643331576914,6.0,90.979,90.861,112.2]
[1643331577115,6.0,90.979,90.851,41.3871504]
[1643331577116,13.41,91.05,90.872,112.2]
[1643331577316,4.52120381,91.131,90.872,112.2]
[1643331577317,23.0296,91.059,90.88,13.41]
[1643331577515,23.0296,91.059,90.89,173.65]
[1643331577816,23.0296,91.059,90.94,16.4878]
[1643331578215,23.0296,91.059,90.941,0.25]
[1643331578415,23.0296,91.059,90.91,13.41]
[1643331578615,6.0,91.049,90.941,0.25]
[1643331579015,6.0,91.046,90.941,49.40996034]
[1643331579414,6.0,91.046,90.942,17.22735398]
[1643331579614,2.52507012,91.056,90.942,17.22735398]
[1643331579817,2.52507012,91.056,90.943,112.45]
[1643331580015,23.0296,91.059,90.95,16.488]
[1643331580314,23.0296,91.059,90.96,13.41]
[1643331580517,23.0296,91.059,90.97,13.41]
[1643331580916,23.0296,91.059,90.971,0.25]
[1643331581123,23.0296,91.059,90.971,41.92872192]
[1643331581317,23.0296,91.059,90.972,112.2]